[Event "2nd Bieszczady Chess-ch B 2022"]
[Site "Bystre"]
[Date "2022.07.24"]
[Round "9.8"]
[White "Tokarz, Gabriela"]
[Black "Mikula, Maciej"]
[Result "0-1"]
[ECO "A58"]
[WhiteElo "1412"]
[BlackElo "1620"]
[Annotator "NA RC COMBH"]
[PlyCount "122"]
[EventDate "2022.07.17"]
[EventCountry "POL"]
[SourceTitle "playchess.com"]
[Source "ChessBase"]
[SourceQuality "1"]
[TimeControl "5400+30"]

1. d4 {[%emt 0:00:04]} Nf6 {[%emt 0:02:22]} 2. c4 {[%emt 0:00:32]} c5 {[%emt 0:00:36]} 3. d5 {[%emt 0:00:10]} b5 {[%emt 0:00:42]} 4. cxb5 {[%emt 0:00:25]} a6 {[%emt 0:00:39]} 5. bxa6 {[%emt 0:00:24]} Bxa6 {[%emt 0:01:07]} 6. g3 {[%emt 0:00:48]} g6 {[%emt 0:01:48]} 7. Bg2 {[%emt 0:00:36]} d6 {[%emt 0:01:47]} 8. Bd2 {[%emt 0:00:46]} Bg7 {[%emt 0:01:36]} 9. Bc3 {[%emt 0:01:22]} Nbd7 {[%emt 0:01:41]} 10. Nh3 {[%emt 0:00:47]} Nb6 {[%emt 0:01:32]} 11. Nf4 {[%emt 0:02:08]} O-O {[%emt 0:01:57]} 12. h4 {[%emt 0:00:32]} h5 {[%emt 0:02:29]} 13. O-O {[%emt 0:01:02]} Qc7 {[%emt 0:05:23]} 14. Re1 {[%emt 0:01:41]} Rfb8 {[%emt 0:04:01]} 15. Qc2 {[%emt 0:04:28]} Bb7 {[%emt 0:22:52]} 16. e4 {[%emt 0:05:33]} c4 {[%emt 0:07:39]} 17. Bd4 {[%emt 0:02:27]} Ng4 {[%emt 0:08:10]} 18. Bxg7 {[%emt 0:01:19]} Kxg7 {[%emt 0:00:12]} 19. b3 {[%emt 0:01:40]} Qc5 {[%emt 0:01:43]} 20. bxc4 {[%emt 0:04:56]} Nxc4 {[%emt 0:00:42]} 21. Nd3 {[%emt 0:01:20]} Qd4 {[%emt 0:05:48]} 22. Qc3 {[%emt 0:01:14]} Qxc3 {[%emt 0:00:07]} 23. Nxc3 {[%emt 0:00:06]} Ra3 {[%emt 0:00:15]} 24. Rec1 {[%emt 0:01:15]} Rc8 {[%emt 0:00:58]} 25. Nb4 {[%emt 0:01:44]} Nge5 {[%emt 0:06:53]} 26. Nb5 {[%emt 0:04:00]} Ra4 {[%emt 0:03:09]} 27. a3 {[%emt 0:00:53]} Nd2 {[%emt 0:01:43]} 28. Rxc8 {[%emt 0:02:15]} Bxc8 {[%emt 0:00:03]} 29. Nc3 {[%emt 0:01:23]} Ra7 {[%emt 0:00:42]} 30. Ra2 {[%emt 0:01:10]} Ndc4 {[%emt 0:01:09]} 31. Bf1 {[%emt 0:02:53]} Rxa3 {[%emt 0:01:35]} 32. Bxc4 {[%emt 0:00:49]} Rxc3 {[%emt 0:01:09]} 33. Ba6 {[%emt 0:01:27]} Bh3 {[%emt 0:00:41]} 34. Kh2 {[%emt 0:00:48]} Bg4 {[%emt 0:00:09]} 35. f4 {[%emt 0:01:59]} Nf3+ {[%emt 0:01:23]} 36. Kg2 {[%emt 0:00:19]} Re3 {[%emt 0:01:25]} 37. Nc6 {[%emt 0:01:18]} Rxe4 {[%emt 0:00:40]} 38. Be2 {[%emt 0:00:22]} Nxh4+ {[%emt 0:01:34]} 39. Kf2 {[%emt 0:00:17]} Bxe2 {[%emt 0:02:09]} 40. Rxe2 {[%emt 0:01:33]} Rxe2+ {[%emt 0:00:05]} 41. Kxe2 {[%emt 0:00:08]} Nf5 {[%emt 0:00:02]} 42. Kf3 {[%emt 0:00:13]} Kf6 {[%emt 0:00:43]} 43. Nb4 {[%emt 0:00:54]} e6 {[%emt 0:00:52]} 44. dxe6 {[%emt 0:00:14]} Kxe6 {[%emt 0:00:19]} 45. g4 {[%emt 0:00:12]} hxg4+ {[%emt 0:00:21]} 46. Kxg4 {[%emt 0:00:07]} d5 {[%emt 0:02:02]} 47. Kg5 {[%emt 0:00:16]} d4 {[%emt 0:01:15]} 48. Nd3 {[%emt 0:01:00]} Ne3 {[%emt 0:00:23]} 49. Nb4 {[%emt 0:00:22]} Ng2 {[%emt 0:01:19]} 50. Nd3 {[%emt 0:00:20]} Kd5 {[%emt 0:00:59]} 51. f5 {[%emt 0:00:17]} Ke4 {[%emt 0:02:55]} 52. fxg6 {[%emt 0:00:18]} fxg6 {[%emt 0:00:03]} 53. Nc5+ {[%emt 0:00:12]} Ke3 {[%emt 0:00:55]} 54. Kxg6 {[%emt 0:00:13]} Nf4+ {[%emt 0:01:20]} 55. Kf5 {[%emt 0:00:12]} Nd5 {[%emt 0:00:30]} 56. Ke6 {[%emt 0:00:48]} Nc7+ {[%emt 0:00:23]} 57. Ke5 {[%emt 0:01:36]} Na6 {[%emt 0:01:01]} 58. Nb3 {[%emt 0:00:17]} d3 {[%emt 0:00:04]} 59. Kd5 {[%emt 0:00:10]} Nb4+ {[%emt 0:00:22]} 60. Kc4 {[%emt 0:00:10]} Na2 {[%emt 0:00:02]} 61. Kd5 {[%emt 0:04:16]} Nc1 {[%emt 0:00:39]} 0-1

[Event "2nd Bieszczady Chess-ch B 2022"]
[Site "Bystre"]
[Date "2022.07.24"]
[Round "9.9"]
[White "Kotyla, Jan"]
[Black "Labedz, Dawid"]
[Result "0-1"]
[ECO "A30"]
[WhiteElo "1398"]
[BlackElo "1562"]
[Annotator "NA RC COMBH"]
[PlyCount "110"]
[EventDate "2022.07.17"]
[EventCountry "POL"]
[SourceTitle "playchess.com"]
[Source "ChessBase"]
[SourceQuality "1"]
[TimeControl "5400+30"]

1. c4 {[%emt 0:00:03]} c5 {[%emt 0:00:55]} 2. e3 {[%emt 0:00:52]} g6 {[%emt 0:00:55]} 3. d4 {[%emt 0:00:44]} cxd4 {[%emt 0:01:02]} 4. exd4 {[%emt 0:00:26]} d5 {[%emt 0:01:23]} 5. cxd5 {[%emt 0:05:08]} Nf6 {[%emt 0:01:21]} 6. Bb5+ {[%emt 0:00:29]} Nbd7 {[%emt 0:01:17]} 7. Nc3 {[%emt 0:01:35]} Bg7 {[%emt 0:01:51]} 8. d6 {[%emt 0:08:20]} exd6 {[%emt 0:01:57]} 9. Nge2 {[%emt 0:01:29]} O-O {[%emt 0:01:47]} 10. O-O {[%emt 0:01:09]} a6 {[%emt 0:02:11]} 11. Ba4 {[%emt 0:01:22]} b5 {[%emt 0:01:28]} 12. Bb3 {[%emt 0:00:13]} Bb7 {[%emt 0:01:05]} 13. a3 {[%emt 0:03:49]} Rc8 {[%emt 0:03:55]} 14. Nf4 {[%emt 0:03:03]} Nb6 {[%emt 0:02:05]} 15. h4 {[%emt 0:01:44]} Nc4 {[%emt 0:06:50]} 16. h5 {[%emt 0:04:18]} Qd7 {[%emt 0:09:13]} 17. Qd3 {[%emt 0:04:01]} Qg4 {[%emt 0:04:49]} 18. Bd1 {[%emt 0:04:03]} Qh4 {[%emt 0:03:45]} 19. b3 {[%emt 0:08:48]} Nb6 {[%emt 0:01:04]} 20. Bd2 {[%emt 0:03:21]} Ng4 {[%emt 0:09:21]} 21. Nh3 {[%emt 0:04:41]} Nh6 {[%emt 0:04:56]} 22. Ne2 {[%emt 0:04:49]} Be4 {[%emt 0:07:20]} 23. Qg3 {[%emt 0:02:13]} Qxg3 {[%emt 0:00:50]} 24. Nxg3 {[%emt 0:00:21]} Bd3 {[%emt 0:02:39]} 25. Re1 {[%emt 0:00:30]} Bxd4 {[%emt 0:06:20]} 26. Bxh6 {[%emt 0:00:17]} Bxa1 {[%emt 0:00:15]} 27. Bxf8 {[%emt 0:00:22]} Rxf8 {[%emt 0:00:58]} 28. Re3 {[%emt 0:03:24]} Bb1 {[%emt 0:01:28]} 29. Bf3 {[%emt 0:01:06]} Be5 {[%emt 0:01:03]} 30. Bb7 {[%emt 0:02:27]} a5 {[%emt 0:00:49]} 31. Ne2 {[%emt 0:03:10]} a4 {[%emt 0:02:38]} 32. f4 {[%emt 0:01:44]} Bb2 {[%emt 0:00:44]} 33. bxa4 {[%emt 0:00:33]} bxa4 {[%emt 0:00:32]} 34. Ba6 {[%emt 0:01:29]} Kg7 {[%emt 0:01:11]} 35. g4 {[%emt 0:01:41]} Bc2 {[%emt 0:01:09]} 36. Bb5 {[%emt 0:02:21]} Bb3 {[%emt 0:00:52]} 37. Re4 {[%emt 0:00:32]} Bxa3 {[%emt 0:00:44]} 38. Nc3 {[%emt 0:00:50]} Bc5+ {[%emt 0:00:09]} 39. Kh2 {[%emt 0:00:23]} a3 {[%emt 0:00:18]} 40. f5 {[%emt 0:04:04]} a2 {[%emt 0:00:43]} 41. Nxa2 {[%emt 0:00:12]} Bxa2 {[%emt 0:00:08]} 42. Ng5 {[%emt 0:03:49]} Nd5 {[%emt 0:02:13]} 43. Ra4 {[%emt 0:00:54]} Nc3 {[%emt 0:00:27]} 44. Ra6 {[%emt 0:01:19]} Nxb5 {[%emt 0:00:13]} 45. Rxa2 {[%emt 0:00:10]} Be3 46. f6+ {[%emt 0:03:15]} Kh6 {[%emt 0:01:07]} 47. Nh3 {[%emt 0:00:23]} gxh5 {[%emt 0:00:13]} 48. Re2 {[%emt 0:05:32]} hxg4 {[%emt 0:00:16]} 49. Rxe3 {[%emt 0:00:20]} gxh3 {[%emt 0:00:02]} 50. Rg3 {[%emt 0:01:07]} d5 {[%emt 0:00:25]} 51. Kxh3 {[%emt 0:00:52]} Rc8 {[%emt 0:00:28]} 52. Rg7 {[%emt 0:01:29]} Nd6 {[%emt 0:00:30]} 53. Kg4 {[%emt 0:00:42]} Rc4+ {[%emt 0:00:13]} 54. Kf3 {[%emt 0:00:38]} Re4 {[%emt 0:00:08]} 55. Rg8 {[%emt 0:03:22]} Re6 {[%emt 0:00:07]} 0-1

[Event "2nd Bieszczady Chess-ch B 2022"]
[Site "Bystre"]
[Date "2022.07.24"]
[Round "9.10"]
[White "Ochalik, Filip"]
[Black "Kasianczuk, Krzysztof"]
[Result "0-1"]
[ECO "E76"]
[WhiteElo "1342"]
[BlackElo "1557"]
[Annotator "NA RC COMBH"]
[PlyCount "128"]
[EventDate "2022.07.17"]
[EventCountry "POL"]
[SourceTitle "playchess.com"]
[Source "ChessBase"]
[SourceQuality "1"]
[TimeControl "5400+30"]

1. d4 {[%emt 0:00:11]} Nf6 {[%emt 0:00:27]} 2. c4 {[%emt 0:00:30]} g6 {[%emt 0:00:04]} 3. Nc3 {[%emt 0:00:52]} Bg7 {[%emt 0:00:07]} 4. e4 {[%emt 0:00:34]} d6 {[%emt 0:00:13]} 5. f4 {[%emt 0:00:50]} O-O {[%emt 0:00:17]} 6. Nf3 {[%emt 0:02:38]} e5 {[%emt 0:03:12]} 7. fxe5 {[%emt 0:08:46]} dxe5 {[%emt 0:00:32]} 8. d5 {[%emt 0:00:07]} Nbd7 {[%emt 0:02:07]} 9. Bd3 {[%emt 0:01:30]} Nc5 {[%emt 0:08:42]} 10. Bc2 {[%emt 0:03:21]} Bg4 {[%emt 0:04:19]} 11. O-O {[%emt 0:01:31]} a5 {[%emt 0:03:10]} 12. Bg5 {[%emt 0:02:54]} h6 {[%emt 0:01:55]} 13. Be3 {[%emt 0:01:21]} Qe7 {[%emt 0:02:37]} 14. h3 {[%emt 0:03:59]} Bc8 {[%emt 0:02:57]} 15. Qd2 {[%emt 0:07:21]} Kh7 {[%emt 0:01:10]} 16. Rae1 {[%emt 0:01:36]} Rd8 {[%emt 0:01:49]} 17. Kh1 {[%emt 0:04:06]} Rh8 {[%emt 0:07:31]} 18. Bg1 {[%emt 0:10:28]} b6 {[%emt 0:03:56]} 19. Bh2 {[%emt 0:06:26]} Ne8 {[%emt 0:08:45]} 20. Rf2 {[%emt 0:09:34]} Nd6 {[%emt 0:00:59]} 21. Qe2 {[%emt 0:05:10]} Ba6 {[%emt 0:03:43]} 22. b3 {[%emt 0:05:41]} Raf8 {[%emt 0:04:59]} 23. Nb5 {[%emt 0:01:32]} Bc8 {[%emt 0:03:05]} 24. Nxd6 {[%emt 0:07:48]} cxd6 {[%emt 0:12:32]} 25. Nd2 {[%emt 0:01:55]} h5 {[%emt 0:07:53]} 26. a3 {[%emt 0:01:53]} Kg8 {[%emt 0:00:45]} 27. b4 {[%emt 0:01:00]} axb4 {[%emt 0:00:16]} 28. axb4 {[%emt 0:00:04]} Nd7 {[%emt 0:00:55]} 29. Nf1 {[%emt 0:01:02]} Nf6 {[%emt 0:00:37]} 30. Ne3 {[%emt 0:01:40]} h4 {[%emt 0:05:00]} 31. Ref1 {[%emt 0:01:45]} Nh5 {[%emt 0:00:27]} 32. Qf3 {[%emt 0:03:10]} Bh6 {[%emt 0:00:43]} 33. c5 {[%emt 0:02:03]} bxc5 {[%emt 0:00:26]} 34. bxc5 {[%emt 0:00:35]} dxc5 {[%emt 0:00:57]} 35. Ng4 {[%emt 0:00:48]} Bxg4 {[%emt 0:00:48]} 36. Qxg4 {[%emt 0:00:27]} Bf4 {[%emt 0:00:43]} 37. Rxf4 {[%emt 0:00:43]} exf4 {[%emt 0:02:48]} 38. Bxf4 {[%emt 0:00:06]} Nxf4 {[%emt 0:00:28]} 39. Qxf4 {[%emt 0:00:41]} Rh5 40. Bd3 {[%emt 0:01:37]} Qe5 {[%emt 0:01:16]} 41. Qf3 {[%emt 0:01:14]} Qg3 {[%emt 0:03:56]} 42. Qd1 {[%emt 0:00:35]} Rg5 {[%emt 0:00:26]} 43. Qc2 {[%emt 0:00:09]} Qe3 {[%emt 0:01:30]} 44. d6 {[%emt 0:01:05]} Rg3 {[%emt 0:01:27]} 45. Bc4 {[%emt 0:00:14]} Qc3 {[%emt 0:00:34]} 46. Qa2 {[%emt 0:00:16]} Kg7 {[%emt 0:01:07]} 47. d7 {[%emt 0:00:59]} f6 {[%emt 0:00:27]} 48. Be6 {[%emt 0:01:02]} Qd3 {[%emt 0:00:42]} 49. Qa1 {[%emt 0:00:19]} Qd4 {[%emt 0:00:39]} 50. Qxd4 {[%emt 0:00:34]} cxd4 {[%emt 0:00:09]} 51. Rd1 {[%emt 0:00:03]} d3 {[%emt 0:00:15]} 52. Bc4 {[%emt 0:00:51]} Rd8 {[%emt 0:00:19]} 53. Bb5 {[%emt 0:00:18]} Kf8 {[%emt 0:00:18]} 54. Kg1 {[%emt 0:00:15]} Ke7 {[%emt 0:00:18]} 55. Kf2 {[%emt 0:00:13]} Kd6 {[%emt 0:00:38]} 56. Rxd3+ {[%emt 0:00:50]} Rxd3 {[%emt 0:00:11]} 57. Bxd3 {[%emt 0:00:05]} Rxd7 {[%emt 0:00:24]} 58. e5+ {[%emt 0:00:08]} Kxe5 {[%emt 0:00:24]} 59. Bxg6 {[%emt 0:00:11]} Kf4 {[%emt 0:00:32]} 60. Bh5 {[%emt 0:00:28]} Rd2+ {[%emt 0:00:18]} 61. Kf1 {[%emt 0:00:26]} Ke3 {[%emt 0:00:50]} 62. Bg4 {[%emt 0:00:29]} Rc2 {[%emt 0:00:46]} 63. Kg1 {[%emt 0:00:20]} Kf4 {[%emt 0:00:11]} 64. Bd7 {[%emt 0:01:17]} Kg3 {[%emt 0:00:12]} 0-1

[Event "2nd Bieszczady Chess-ch B 2022"]
[Site "Bystre"]
[Date "2022.07.24"]
[Round "9.11"]
[White "Kryston, Aleksander"]
[Black "Trela, Konrad"]
[Result "1-0"]
[ECO "A43"]
[WhiteElo "1216"]
[BlackElo "1523"]
[Annotator "NA RC COMBH"]
[PlyCount "53"]
[EventDate "2022.07.17"]
[EventCountry "POL"]
[SourceTitle "playchess.com"]
[Source "ChessBase"]
[SourceQuality "1"]
[TimeControl "5400+30"]

1. d4 {[%emt 0:00:02]} c5 {[%emt 0:00:01]} 2. Nf3 {[%emt 0:02:01]} cxd4 {[%emt 0:00:49]} 3. Nxd4 {[%emt 0:00:07]} Nf6 {[%emt 0:02:35]} 4. Nc3 {[%emt 0:00:13]} d5 {[%emt 0:08:08]} 5. Bg5 {[%emt 0:02:36]} a6 {[%emt 0:01:22]} 6. e3 {[%emt 0:01:23]} Bg4 {[%emt 0:07:42]} 7. Be2 {[%emt 0:00:44]} Bxe2 8. Ndxe2 {[%emt 0:03:27]} e6 {[%emt 0:07:02]} 9. O-O {[%emt 0:01:57]} Be7 {[%emt 0:03:16]} 10. Nd4 {[%emt 0:07:53]} Nc6 {[%emt 0:04:36]} 11. Nxc6 {[%emt 0:00:53]} bxc6 {[%emt 0:00:02]} 12. Rb1 {[%emt 0:01:51]} Rb8 {[%emt 0:04:04]} 13. Qf3 {[%emt 0:02:49]} O-O {[%emt 0:03:40]} 14. a3 {[%emt 0:14:34]} a5 {[%emt 0:13:16]} 15. Ne2 {[%emt 0:05:08]} Ne4 {[%emt 0:03:46]} 16. Bxe7 {[%emt 0:00:14]} Qxe7 {[%emt 0:00:02]} 17. Rfd1 {[%emt 0:01:12]} Qc5 {[%emt 0:02:15]} 18. c3 {[%emt 0:00:57]} a4 {[%emt 0:06:50]} 19. Ng3 {[%emt 0:03:57]} Nd6 {[%emt 0:03:00]} 20. Rd4 {[%emt 0:02:25]} Nc4 {[%emt 0:01:18]} 21. Rh4 {[%emt 0:05:48]} Nd2 {[%emt 0:05:31]} 22. Qh5 {[%emt 0:01:04]} h6 {[%emt 0:00:01]} 23. Rd1 {[%emt 0:06:16]} Rxb2 {[%emt 0:00:44]} 24. Rg4 {[%emt 0:00:30]} Kh7 {[%emt 0:06:25]} 25. Qe5 {[%emt 0:00:53]} g6 {[%emt 0:05:01]} 26. Nh5 {[%emt 0:00:29]} f6 {[%emt 0:02:50]} 27. Qc7+ 1-0